bitfinex/quotes_ETHUSD_20250411
["timestamp","ask_amount","ask_price","bid_price","bid_amount"]
[1744381032426,6.41003,1560.1,1559.7,0.39462363]
[1744381032631,35.025145,1560.2,1559.8,6.41084]
[1744381032839,14.5,1560.2,1559.8,6.41107]
[1744381033041,14.5,1560.2,1560.0,6.40998]
[1744381033337,14.5,1560.2,1560.0,7.91768]
[1744381034142,14.5,1560.2,1560.0,14.32777]
[1744381034347,14.5,1560.2,1560.0,7.91768]
[1744381034508,14.5,1560.2,1560.0,14.32781]
[1744381034904,6.40934,1560.3,1560.0,1.5077]
[1744381035139,13.459584,1560.3,1559.8,6.41092]
[1744381035308,13.459584,1560.3,1559.9,6.41044]
[1744381035309,7.050204,1560.3,1559.9,6.41044]
[1744381035621,0.640934,1560.3,1559.7,8.35414363]
[1744381035819,14.5,1560.2,1559.8,6.4107]
[1744381036017,14.5,1560.2,1559.9,6.41066]
[1744381036218,14.5,1560.2,1559.8,6.96107]
[1744381036438,14.5,1560.2,1560.1,6.40984]
[1744381036649,14.5,1560.2,1560.1,7.93934]
[1744381036951,14.5,1560.2,1560.1,1.5295]
[1744381037149,14.5,1560.2,1559.9,8.0507]
[1744381037352,14.5,1560.2,1559.9,1.6401]
[1744381037654,14.5,1560.2,1560.0,6.41023]
[1744381038145,14.5,1560.2,1560.0,6.41011]
[1744381038314,14.5,1560.2,1560.1,6.40984]
[1744381039348,15.95,1560.2,1559.9,8.0506]
[1744381039642,14.5,1560.2,1559.9,14.46111]
[1744381040245,14.5,1560.2,1559.9,1.6401]
[1744381040444,20.90947,1560.2,1559.9,1.6401]
[1744381041054,27.31913,1560.2,1559.9,1.6401]
[1744381041261,20.90947,1560.2,1559.9,1.6401]
[1744381041421,23.000417,1560.2,1559.9,1.6401]
[1744381041628,14.5,1560.2,1560.0,6.41024]
[1744381041816,14.5,1560.2,1560.0,12.82035]
[1744381042012,14.5,1560.2,1560.1,6.40984]
[1744381043845,14.5,1560.2,1560.1,9.95984]
[1744381044146,14.5,1560.2,1560.1,11.61114]
[1744381044446,14.5,1560.2,1560.1,14.054264]
[1744381044742,12.86343,1560.9,1560.5,6.40813]
[1744381044931,12.86354,1560.9,1560.5,6.40813]
[1744381045131,14.5,1560.8,1560.4,12.81708]
[1744381045443,14.5,1560.8,1560.5,6.40813]
[1744381046248,14.5,1560.8,1560.6,6.40779]
[1744381046544,14.5,1560.8,1560.5,2.835142]
[1744381046744,6.4074,1560.7,1560.5,1.5535]
[1744381046959,20.90718,1560.8,1560.4,6.40848]
[1744381047157,6.40797,1560.6,1560.2,6.40927]
[1744381047358,6.40831,1560.5,1560.1,6.40977]
[1744381047657,6.40831,1560.5,1560.2,6.40937]
[1744381047815,6.40868,1560.4,1560.1,6.4097]
[1744381048143,6.40831,1560.5,1560.1,6.4097]
[1744381048458,3.0,1560.7,1560.1,6.40973]
[1744381048659,6.4084,1560.5,1560.2,6.40943]
[1744381048820,23.95701,1560.8,1560.3,6.40868]
[1744381048821,6.40748,1560.7,1560.3,6.40868]
[1744381049019,6.40748,1560.7,1560.4,6.40859]
[1744381049417,6.40748,1560.7,1560.3,12.81754]
[1744381049625,23.95714,1560.8,1560.2,6.40943]
[1744381049826,14.5,1560.8,1560.4,6.40838]
[1744381050057,14.5,1560.8,1560.2,8.602573]
[1744381050222,14.5,1560.8,1560.4,6.40849]
[1744381050458,6.40763,1560.7,1560.3,6.40895]
[1744381050659,6.40787,1560.6,1560.2,14.37094]
[1744381051011,6.40787,1560.6,1560.2,14.37082]
[1744381051220,14.5,1560.8,1560.2,7.96154]
[1744381051559,6.40861,1560.4,1560.0,14.48184]
[1744381051715,6.40852,1560.5,1560.1,6.40984]
[1744381052046,6.40852,1560.5,1560.1,12.81968]
[1744381052352,6.45793,1560.6,1560.2,6.40915]
[1744381052652,7.85778,1560.7,1560.3,6.4087]
[1744381052653,14.26537,1560.7,1560.3,6.4087]
[1744381052820,6.40783,1560.6,1560.3,6.4087]
[1744381053240,6.40759,1560.7,1560.3,12.81759]
[1744381053429,12.81517,1560.7,1560.3,6.4087]
[1744381053652,15.551687,1560.7,1560.3,6.4087]
[1744381053853,20.95711,1560.8,1560.4,6.40858]
[1744381054148,20.95711,1560.8,1560.3,6.4089]
[1744381054149,6.40784,1560.6,1560.3,6.4089]
[1744381054354,6.40784,1560.6,1560.2,6.40914]
[1744381054749,14.55,1560.8,1560.2,6.40943]
[1744381055049,14.5,1560.8,1560.5,6.40805]
[1744381055539,6.40761,1560.7,1560.4,1.5316]
[1744381055935,16.590661,1560.8,1560.5,6.40804]
[1744381056347,22.997661,1560.8,1560.4,14.3486]
[1744381056521,14.5,1560.8,1560.5,12.81623]
[1744381056727,14.5,1560.8,1560.6,6.40777]
[1744381057122,14.5,1560.8,1560.5,6.40806]
[1744381057323,14.5,1560.8,1560.4,1.5316]
[1744381057567,12.81679,1560.5,1560.2,1.6092]
[1744381057759,14.103479,1560.5,1560.1,6.4097]
[1744381057955,7.695039,1560.5,1560.1,12.8194]
[1744381058158,1.286679,1560.5,1560.2,6.40934]
[1744381058331,20.95714,1560.8,1560.4,6.40845]
[1744381058535,6.40748,1560.7,1560.3,13.59494301]
[1744381058757,6.40748,1560.7,1560.3,13.59493301]
[1744381058964,6.40748,1560.7,1560.4,6.4086]
[1744381059134,6.40748,1560.7,1560.3,12.81782]
[1744381059325,6.40748,1560.7,1560.4,0.42172466]
[1744381059756,20.95709,1560.8,1560.4,12.81697]
[1744381060032,30.100567,1560.8,1560.5,0.42167903]
[1744381060261,6.40779,1560.6,1560.5,0.42167903]
[1744381060831,6.40779,1560.6,1560.3,6.40896]
[1744381061033,20.95716,1560.8,1560.3,0.06408857]
[1744381061264,20.95716,1560.8,1560.4,13.23839796]
[1744381061769,14.55,1560.8,1560.5,6.40813]
[1744381062066,14.5,1560.8,1560.6,6.40763]
[1744381062238,14.5,1560.8,1560.5,6.40811]
[1744381062638,20.90707,1560.8,1560.4,8.06148]
[1744381062865,6.40751,1560.7,1560.4,1.653]
[1744381063063,27.31443,1560.8,1560.5,0.42210523]
[1744381063248,6.40742,1560.7,1560.5,3.42210523]
[1744381063449,20.90699,1560.8,1560.4,6.40856]
[1744381063654,20.90699,1560.8,1560.4,12.81712]
[1744381064169,14.5,1560.8,1560.7,6.40738]
[1744381064373,14.5,1560.8,1560.2,7.93737]
[1744381064374,6.40783,1560.6,1560.2,7.93737]
[1744381064537,6.40783,1560.6,1560.2,14.34669]
[1744381064538,12.81592,1560.6,1560.2,14.34669]
[1744381064742,14.26514,1560.7,1560.3,6.409]
[1744381064955,6.40794,1560.6,1560.2,14.3468]
[1744381065280,6.40794,1560.6,1560.2,1.5281]
[1744381065574,6.40861,1560.4,1559.8,1.6639]
[1744381065776,6.41105,1559.9,1559.7,0.394617]
[1744381066072,14.5,1559.8,1559.7,0.394617]
[1744381066271,20.91107,1559.8,1559.7,0.394617]
[1744381066477,26.643259,1559.8,1559.7,0.394617]
[1744381067537,30.9984398,1559.8,1559.7,0.394617]
[1744381068171,26.693259,1559.8,1559.7,0.394617]
[1744381068542,30.9984398,1559.8,1559.7,0.394617]
[1744381068882,26.693259,1559.8,1559.7,0.394617]
[1744381069394,23.693259,1559.8,1559.7,0.394617]
[1744381069693,23.96107,1559.8,1559.7,0.394617]
[1744381069991,14.5,1559.8,1559.7,0.394617]
[1744381070156,20.91107,1559.8,1559.7,0.394617]
[1744381070586,14.5,1559.8,1559.7,0.394617]
[1744381070780,20.91107,1559.8,1559.7,0.394617]
[1744381071086,23.643259,1559.8,1559.7,0.394617]
[1744381071494,14.5,1559.8,1559.7,0.394617]
[1744381072392,20.91107,1559.8,1559.7,0.394617]
[1744381072605,28.2162508,1559.8,1559.7,0.394617]
[1744381072995,23.91107,1559.8,1559.7,0.394617]
[1744381073666,20.91107,1559.8,1559.7,0.394617]
[1744381073874,23.643246,1559.8,1559.7,0.394617]
[1744381074268,20.91107,1559.8,1559.7,0.394617]
[1744381077603,14.5,1559.8,1559.7,0.394617]
[1744381078103,20.91107,1559.8,1559.7,0.394617]
[1744381078403,23.91107,1559.8,1559.7,0.394617]
[1744381078725,28.2662508,1559.8,1559.7,0.394617]
[1744381079001,27.42876408,1559.8,1559.7,0.394617]
[1744381079207,31.73394488,1559.8,1559.7,0.394617]
[1744381079612,31.73394488,1559.8,1559.7,7e-06]
[1744381080308,27.42876408,1559.8,1559.7,7e-06]
[1744381081113,20.91107,1559.8,1559.7,7e-06]
[1744381083824,28.75820933,1559.8,1559.7,7e-06]
[1744381085510,6.41313,1559.3,1559.2,0.55]
[1744381085720,9.64463536,1559.3,1559.2,0.55]
[1744381086125,24.14463536,1559.3,1559.2,0.55]
[1744381086523,30.8416829,1559.3,1559.2,0.55]
[1744381086718,30.8416829,1559.3,1558.7,0.47873772]
[1744381086719,6.41519,1558.8,1558.7,0.47873772]
[1744381086924,19.09469536,1558.8,1558.7,0.47873772]
[1744381087147,12.67950536,1558.8,1558.5,6.4163]
[1744381087353,12.67950536,1558.8,1558.6,6.41574]
[1744381087501,0.05,1559.1,1558.8,6.41511]
[1744381087502,6.41405,1559.1,1558.8,6.41511]
[1744381087706,14.5,1558.9,1558.8,1.6183]
[1744381088146,14.5,1558.9,1558.8,8.03349]
[1744381088845,14.5,1558.9,1558.8,1.6183]
[1744381089276,20.91482,1558.9,1558.6,7.94989]
[1744381089462,20.91482,1558.9,1558.6,14.36574]
[1744381089773,27.32985,1558.9,1558.6,7.94985]
[1744381089960,6.41539,1558.8,1558.6,1.534]
[1744381090327,23.647749,1558.9,1558.4,8.06995]
[1744381090328,6.41572,1558.7,1558.4,8.06995]
[1744381090668,12.83166,1558.7,1558.4,8.07]
[1744381090846,6.41572,1558.7,1558.4,8.07]
[1744381091041,6.41572,1558.7,1558.4,14.48671]
[1744381091264,6.41529,1558.8,1558.5,6.41641]
[1744381091428,17.282949,1558.9,1558.6,6.41589]
[1744381091429,20.91486,1558.9,1558.6,6.41589]
[1744381091644,17.98660162,1558.9,1558.6,6.41589]
[1744381091844,24.40157162,1558.9,1558.6,6.41589]
[1744381092060,20.91497,1558.9,1558.6,6.41589]
[1744381092464,27.33005,1558.9,1558.5,12.83262]
[1744381092664,27.32993,1558.9,1558.5,12.83262]
[1744381093186,20.91496,1558.9,1558.6,6.41595]
[1744381093381,14.5,1558.9,1558.6,6.41595]
[1744381093538,14.5,1558.9,1558.6,12.83176]
[1744381093740,14.5,1558.9,1558.6,6.41588]
[1744381094291,16.91459754,1558.9,1558.5,6.41633]
[1744381094575,16.91459754,1558.9,1558.6,6.4156]
[1744381094780,14.5,1558.9,1558.6,6.41561]
[1744381095075,20.91478,1558.9,1558.6,12.83149]
[1744381095379,20.91478,1558.9,1558.6,6.41561]
[1744381095580,20.91478,1558.9,1558.6,12.83148]
[1744381095879,14.5,1558.9,1558.6,12.83148]
[1744381096078,14.5,1558.9,1558.7,6.4156]
[1744381096271,14.5,1558.9,1558.8,8.01159]
[1744381097054,14.5,1558.9,1558.6,1.556]
[1744381097246,14.5,1558.9,1558.6,14.38772]
[1744381097450,14.5,1558.9,1558.7,6.41559]
[1744381097848,14.5,1558.9,1558.8,6.41519]
[1744381098247,14.5,1558.9,1558.7,12.83086]
[1744381098545,14.5,1558.9,1558.8,6.41519]
[1744381098752,14.5,1558.9,1558.6,7.97194]
[1744381098982,14.5,1558.9,1558.8,6.96519]
[1744381099142,14.5,1558.9,1558.8,8.92339031]
[1744381099677,14.5,1558.9,1558.8,9.27881755]
[1744381099879,3.28150536,1559.5,1558.8,2.92777126]
[1744381100047,9.64363536,1559.6,1559.2,8.01766]
[1744381100248,10.6129989,1559.6,1559.3,6.413]
[1744381100483,14.5,1559.5,1559.3,12.826]
[1744381100783,3.28150536,1560.1,1559.4,1.5996]
[1744381101079,9.69149536,1560.1,1559.7,6.41118]
[1744381101296,14.5,1560.0,1559.7,6.41118]
[1744381101488,17.02651708,1560.0,1559.4,8.01225]
[1744381101814,6.41206,1559.6,1559.2,7.99065]
[1744381101968,6.41248,1559.5,1559.2,1.5773]
[1744381102152,6.41199,1559.6,1559.2,7.99071]
[1744381102351,14.5,1559.4,1559.2,7.99071]
[1744381102768,14.5,1559.4,1559.2,14.40413]
[1744381102969,14.5,1559.4,1559.2,1.5773]
[1744381103194,23.004246,1559.4,1559.0,7.91895]
[1744381103495,16.591246,1559.4,1559.1,6.41386]
[1744381103853,14.5,1559.4,1559.0,1.5047]
[1744381104072,14.5,1559.4,1559.3,7.98353]
[1744381105995,14.5,1559.4,1559.3,1.5704]
[1744381106367,14.5,1559.4,1559.3,7.98353]
[1744381107481,14.5,1559.4,1559.3,1.5704]
[1744381107884,14.5,1559.4,1559.2,6.41334]
[1744381109024,14.5,1559.4,1559.2,12.82674]
[1744381109227,14.5,1559.4,1559.2,6.41334]
[1744381109396,15.95,1559.4,1559.2,6.41334]
[1744381109725,22.36289,1559.4,1559.1,1.5126]
[1744381109925,15.95,1559.4,1558.9,4.541]
[1744381110128,15.95,1559.4,1559.1,6.41371]
[1744381110283,22.36277,1559.4,1559.1,6.41371]
[1744381110485,28.77565,1559.4,1559.0,13.26314057]
[1744381110686,22.36277,1559.4,1559.0,12.8286]
[1744381111123,14.5,1559.4,1559.3,6.41313]
[1744381111283,14.5,1559.4,1559.0,6.96436]
[1744381111485,6.41313,1559.3,1558.9,1.541]
[1744381111694,6.41388,1559.2,1558.8,6.41495]
[1744381111911,6.41388,1559.2,1558.8,12.82998]
[1744381112115,8.01974254,1559.2,1558.9,6.41475]
[1744381112294,1.60586254,1559.2,1558.9,12.82939]
[1744381112497,16.05811536,1559.3,1559.0,6.41408]
[1744381112498,3.23150536,1559.3,1559.0,6.41408]
[1744381112715,6.41356,1559.2,1558.9,6.96466]
[1744381113030,3.23150536,1559.3,1559.1,6.41355]
[1744381113496,3.23150536,1559.3,1559.2,6.41354]
[1744381113696,14.5,1559.4,1559.2,6.41354]
[1744381113896,14.5,1559.4,1559.3,6.41313]
[1744381114612,14.5,1559.4,1559.2,6.41341]
[1744381114927,14.5,1559.4,1559.3,6.41313]
[1744381115628,14.5,1559.4,1559.3,6.96313]
[1744381116630,14.5,1559.4,1559.3,9.00038353]
[1744381117224,14.5,1559.4,1559.3,11.53884976]
[1744381117749,14.5,1559.4,1559.3,9.35613741]
[1744381118130,14.5,1559.4,1559.3,2.94300741]
[1744381118333,14.5,1559.4,1559.3,2.1527]
[1744381118499,20.91272,1559.4,1559.3,1.6027]
[1744381118886,24.55883805,1559.4,1559.3,1.6027]
[1744381119129,6.41349,1559.3,1558.9,6.41459]
[1744381119330,6.41429,1559.1,1558.7,8.0409]
[1744381119540,6.41442,1559.0,1558.8,0.43558924]
[1744381119941,6.41412,1559.1,1558.8,6.85074924]
[1744381120145,12.82833,1559.1,1558.7,12.83097]
[1744381120362,12.82891,1559.0,1558.7,6.41545]
[1744381120541,6.41436,1559.0,1558.7,6.41545]
[1744381120843,1.97059534,1559.1,1558.8,6.41506]
[1744381121057,8.38459534,1559.1,1558.8,12.83013]
[1744381121266,19.70504341,1559.2,1558.9,6.41473]
[1744381121446,19.70504341,1559.2,1558.8,6.41506]
[1744381121447,6.41406,1559.1,1558.8,6.41506]
[1744381121650,12.82837,1559.1,1558.7,12.83097]
[1744381121971,6.41406,1559.1,1558.8,6.4151]
[1744381122162,14.43428654,1559.1,1558.8,6.4151]
[1744381122467,6.41438,1559.0,1558.7,6.41548]
[1744381122672,6.41518,1558.9,1558.5,14.34636]
[1744381122875,12.83036,1558.9,1558.5,14.34636]
[1744381123079,7.703216,1558.9,1558.6,6.41598]
[1744381123284,20.91542,1558.8,1558.5,7.93]
[1744381123571,6.41576,1558.7,1558.4,12.83344]
[1744381124085,6.41576,1558.7,1558.4,6.4167]
[1744381124239,14.5,1558.6,1558.4,6.4167]
[1744381124578,14.5,1558.6,1558.4,12.8334]
[1744381124733,14.5,1558.6,1558.4,6.4167]
[1744381125227,14.5,1558.6,1558.4,12.83342]
[1744381125427,14.5,1558.6,1558.5,6.96642]
[1744381125844,14.5,1558.6,1558.5,7.40291273]
[1744381126550,14.5,1558.6,1558.4,12.83328]
[1744381126753,14.5,1558.6,1558.4,6.41663]
[1744381126929,20.91601,1558.6,1558.3,14.96938]
[1744381127127,14.5,1558.6,1558.3,8.55202]
[1744381127331,14.5,1558.6,1558.5,6.41642]
[1744381127531,14.5,1558.6,1558.4,12.83354]
[1744381127963,14.5,1558.6,1558.4,6.41671]
[1744381128164,23.007701,1558.6,1558.3,6.41717]
[1744381128366,16.591561,1558.6,1558.4,6.41679]
[1744381128565,14.5,1558.6,1558.4,6.41679]
[1744381129289,14.5,1558.6,1558.5,6.41642]
[1744381129750,14.5,1558.6,1558.4,6.41679]
[1744381129965,14.5,1558.6,1558.3,6.41713]
[1744381130150,14.5,1558.6,1558.2,1.03775951]
[1744381130151,14.5,1558.6,1558.4,12.83336]
[1744381130465,14.5,1558.6,1558.4,6.41668]
[1744381131082,23.97237954,1558.6,1558.3,12.83428]
[1744381131291,23.97237954,1558.6,1558.3,6.41712]
[1744381131586,23.97232954,1558.6,1558.3,6.41712]
[1744381131795,23.97232954,1558.6,1558.1,2.086117]
[1744381131796,6.41701,1558.4,1558.1,8.504067]
[1744381131947,0.05,1558.5,1558.1,8.504057]
[1744381131948,6.46655,1558.5,1558.1,8.504057]
[1744381132290,12.83397,1558.4,1558.1,6.862557]
[1744381132586,14.5,1558.3,1558.1,6.862547]
[1744381133647,20.91744,1558.3,1558.1,0.444617]
[1744381133850,27.33509,1558.3,1558.1,0.444617]
[1744381134105,6.41766,1558.2,1558.1,0.444617]
[1744381134283,20.38646842,1558.2,1558.1,0.444617]
[1744381137298,16.07442036,1558.2,1558.1,0.444617]
[1744381137812,27.342915,1558.2,1558.1,0.444617]
[1744381138287,31.65496306,1558.2,1558.1,0.444617]
[1744381138669,34.88646842,1558.2,1558.1,0.444617]
[1744381139496,34.88646842,1558.2,1557.3,6.42131]
[1744381139689,6.42059,1557.5,1557.2,7.95141]
[1744381139885,0.05,1557.8,1557.2,1.5298]
[1744381139886,6.42098,1557.4,1557.2,1.5298]
[1744381140068,14.5,1557.3,1557.1,6.47211]
[1744381140265,6.42178,1557.2,1557.1,0.05]
[1744381140473,9.156125,1557.2,1557.1,0.05]
[1744381140675,6.42156,1557.3,1557.1,0.05]
[1744381140863,14.5,1557.2,1557.1,6.47196]
[1744381141068,14.5,1557.2,1557.1,0.05]
[1744381141268,14.5,1557.2,1557.1,6.47219]
[1744381141586,14.5,1557.2,1557.1,8.65699]
[1744381141908,14.5,1557.2,1557.1,8.10699]
[1744381142301,14.5,1557.2,1557.1,8.65699]
[1744381143167,14.5,1557.2,1557.1,0.05]
[1744381143583,14.5,1557.2,1557.1,7.02219]
[1744381144305,14.5,1557.2,1557.1,8.85975509]
[1744381144538,14.5,1557.2,1557.1,8.79553766]
[1744381145047,14.5,1557.2,1557.1,7.02219]
[1744381145832,14.5,1557.2,1557.1,6.47219]
[1744381146503,14.5,1557.2,1557.1,8.66520764]
[1744381146740,3.28150536,1557.8,1557.5,6.42045]
[1744381146741,9.70086536,1557.8,1557.5,6.42045]
[1744381146953,16.12047536,1557.8,1557.5,6.42045]
[1744381147246,14.5,1557.7,1557.5,6.42045]
[1744381147454,14.5,1557.7,1557.5,6.42042]
[1744381147608,14.5,1557.7,1557.5,12.84081]
[1744381147807,14.5,1557.7,1557.6,6.42013]
[1744381148212,14.5,1557.7,1557.6,6.97013]
[1744381148411,9.4,1558.1,1557.8,6.41919]
[1744381148750,9.4,1558.1,1557.8,12.83834]
[1744381148908,14.5,1558.0,1557.8,2.1436]
[1744381149115,14.5,1558.0,1557.8,0.55]
[1744381149746,14.5,1558.0,1557.7,7.98089]
[1744381149937,17.531807,1558.0,1557.6,6.42008]
[1744381150148,6.41904,1557.9,1557.6,6.42008]
[1744381150358,9.41819,1558.1,1557.8,6.4192]
[1744381150544,6.41909,1557.9,1557.6,0.55]
[1744381150729,6.41909,1557.9,1557.5,8.08003]
[1744381150730,6.41987,1557.7,1557.5,1.6598]
[1744381151046,6.41942,1557.8,1557.5,8.0803]
[1744381151260,3.0,1557.9,1557.5,1.6598]
[1744381151460,14.5,1557.6,1557.5,8.07997]
[1744381151667,14.5,1557.6,1557.5,10.17855891]
[1744381151869,14.5,1557.6,1557.5,10.72855891]
[1744381152436,14.5,1557.6,1557.5,11.62997]
[1744381154258,9.65011536,1558.0,1557.6,6.97004]
[1744381154430,6.41942,1557.8,1557.6,0.55]
[1744381154630,6.41984,1557.7,1557.5,4.6598]
[1744381154941,14.5,1557.7,1557.6,6.97013]
[1744381156172,14.5,1557.7,1557.6,6.42013]
[1744381156342,14.5,1557.7,1557.5,8.07996]
[1744381156690,20.91975,1557.7,1557.4,13.3917]
[1744381156888,20.91975,1557.7,1557.5,6.4204]
[1744381156889,14.5,1557.7,1557.5,6.4204]
[1744381157093,14.5,1557.7,1557.6,6.97013]
[1744381157395,14.5,1557.7,1557.6,10.603816]
[1744381157577,14.5,1557.7,1557.6,8.62273]
[1744381157755,14.5,1557.7,1557.6,9.05983488]
[1744381158765,14.5,1557.7,1557.6,7.40723488]
[1744381159588,14.5,1557.7,1557.6,9.05883488]
[1744381159899,14.5,1557.7,1557.6,11.60710754]
[1744381162924,0.05,1558.4,1558.0,0.55]
[1744381163098,6.41787,1558.2,1558.0,0.55]
[1744381163401,14.5,1558.1,1558.0,0.55]
[1744381164227,14.5,1558.1,1557.9,14.37244]
[1744381164228,14.5,1558.1,1557.7,1.5349]
[1744381164388,6.41891,1557.9,1557.6,12.84003]
[1744381164591,12.83802,1557.9,1557.6,6.42013]
[1744381164904,12.83819,1557.9,1557.7,0.43869087]
[1744381165076,6.4193,1557.8,1557.7,0.43869087]
[1744381165283,12.83812,1557.9,1557.7,0.43869087]
[1744381165581,7.703112,1557.8,1557.7,0.43869087]
[1744381166200,6.41972,1557.7,1557.6,0.55]
[1744381166507,12.83978,1557.7,1557.4,6.42064]
[1744381166676,12.83978,1557.7,1557.5,0.55]
[1744381167201,12.8396,1557.7,1557.5,0.55]
[1744381167405,6.41972,1557.7,1557.5,0.55]
[1744381167608,12.83964,1557.7,1557.5,0.55]
[1744381167911,1.283812,1557.8,1557.4,6.42064]
[1744381167912,14.5,1557.6,1557.4,6.42064]
[1744381168506,20.92017,1557.6,1557.3,0.48268899]
[1744381168710,20.92017,1557.6,1557.1,4.33888661]
[1744381168711,17.28399,1557.6,1557.1,4.33888661]
[1744381169006,12.84308,1557.3,1557.1,4.33888661]
[1744381169220,6.42142,1557.3,1557.1,0.05]
[1744381169624,36.30374536,1557.6,1557.2,0.43872869]
[1744381169830,6.42068,1557.5,1557.2,6.86036869]
[1744381170037,12.84158,1557.5,1557.2,6.86036869]
[1744381170206,12.84158,1557.5,1557.2,6.42164]
[1744381171418,6.42101,1557.4,1557.1,6.47212]
[1744381171629,6.42101,1557.4,1557.1,6.47208]
[1744381171930,6.42137,1557.3,1557.2,0.43872168]
[1744381172096,6.42137,1557.3,1557.1,0.05]
[1744381172097,6.42178,1557.2,1557.1,0.05]
[1744381172298,6.47178,1557.2,1557.1,0.05]
[1744381173038,9.47178,1557.2,1557.1,0.05]
[1744381173206,12.13445681,1557.2,1557.1,0.05]
[1744381173595,26.63445681,1557.2,1557.1,0.05]
[1744381177626,29.86596217,1557.2,1557.1,0.05]
[1744381177928,29.86596217,1557.2,1557.1,1e-05]
[1744381178439,6.42384,1556.7,1556.6,0.394617]
[1744381178736,10.758587,1556.7,1556.6,0.394617]
[1744381178911,7.758587,1556.7,1556.6,0.394617]
[1744381179117,22.258587,1556.7,1556.6,0.394617]
[1744381180052,14.5,1556.7,1556.6,0.394617]
[1744381181258,20.92384,1556.7,1556.6,0.394617]
[1744381181959,1.284158,1557.4,1556.8,1.6602]
[1744381182160,6.42209,1557.2,1556.8,8.08345]
[1744381182359,6.42178,1557.2,1556.8,1.6602]
[1744381182529,6.42178,1557.2,1556.6,2.052717]
[1744381182530,6.42314,1556.9,1556.6,2.052717]
[1744381182738,6.42304,1556.9,1556.6,2.052717]
[1744381182931,14.5,1556.8,1556.6,2.052717]
[1744381183435,23.015804,1556.8,1556.6,2.052717]
[1744381183763,23.015804,1556.8,1556.6,0.394617]
[1744381183959,6.42384,1556.7,1556.6,0.394617]
[1744381185270,6.42508,1556.4,1556.3,0.0127617]
[1744381185468,17.088073,1556.4,1556.3,0.0127617]
[1744381185765,20.088073,1556.4,1556.3,0.0127617]
[1744381187153,34.588073,1556.4,1556.3,0.0127617]
[1744381187334,34.638073,1556.4,1556.3,0.0127617]
[1744381188867,35.11070925,1556.4,1556.3,0.0127617]
[1744381189183,38.34221461,1556.4,1556.3,0.0127617]
[1744381189612,38.34221461,1556.4,1556.3,1.7e-06]
[1744381189761,28.96921461,1556.4,1556.3,1.7e-06]
[1744381190164,38.34521461,1556.4,1556.3,1.7e-06]
[1744381190645,28.96921461,1556.4,1556.3,1.7e-06]
[1744381191059,37.05522161,1556.4,1556.3,1.7e-06]
[1744381191262,36.53258536,1556.4,1556.3,1.7e-06]
[1744381195004,24.15658536,1556.4,1556.3,1.7e-06]
[1744381195201,14.5,1556.4,1556.3,1.5256017]
[1744381195802,20.92508,1556.4,1556.3,1.5256017]
[1744381196101,14.5,1556.4,1556.3,1.5256017]
[1744381196298,20.92508,1556.4,1556.3,1.5256017]
[1744381196701,14.5,1556.4,1556.3,1.5256017]
[1744381197406,23.660033,1556.4,1556.3,1.7e-06]
[1744381197706,26.660033,1556.4,1556.3,1.7e-06]
[1744381200912,20.92508,1556.4,1556.3,1.7e-06]
[1744381201424,23.97508,1556.4,1556.3,1.7e-06]
[1744381201996,30.69508,1556.4,1556.3,1.7e-06]
[1744381202488,23.92508,1556.4,1556.3,1.7e-06]
[1744381202708,20.92508,1556.4,1556.3,1.7e-06]
[1744381204221,38.33959106,1556.4,1556.3,1.7e-06]
[1744381204591,34.027543,1556.4,1556.3,1.7e-06]
[1744381204788,27.307543,1556.4,1556.3,1.7e-06]
[1744381205321,30.53904836,1556.4,1556.3,1.7e-06]
[1744381205518,6.4259,1556.2,1556.1,5.79e-06]
[1744381205720,6.4259,1556.2,1555.5,0.005]
[1744381205721,6.42838,1555.6,1555.5,0.005]
[1744381205926,9.65988536,1555.6,1555.5,0.005]
[1744381206300,24.15988536,1555.6,1555.5,0.005]
[1744381206696,31.47193342,1555.6,1555.5,0.005]
[1744381206901,36.83936076,1555.6,1555.5,0.005]
[1744381207107,41.8733127,1555.6,1555.5,0.005]
[1744381207287,6.43004,1555.2,1555.1,0.05]
[1744381207491,6.42936,1555.4,1555.1,0.05]
[1744381207926,6.4288,1555.5,1555.2,1.604]
[1744381208096,14.5,1555.3,1555.2,1.604]
[1744381208501,14.5,1555.3,1555.2,2.154]
[1744381208698,9.348,1555.6,1555.2,2.154]
[1744381208699,15.77642,1555.6,1555.3,1.604]
[1744381209327,6.42921,1555.4,1555.3,1.604]
[1744381209731,6.43003,1555.3,1555.1,0.05]
[1744381209933,6.43004,1555.2,1555.1,0.05]
[1744381210816,0.76332,1555.3,1555.1,1.6854]
[1744381211147,6.42754,1555.9,1555.4,6.42921]
[1744381211148,6.4272,1555.9,1555.4,6.42921]
[1744381211301,6.4272,1555.9,1555.6,1.5162]
[1744381211494,9.349,1556.3,1555.6,1.5162]
[1744381211495,12.85562,1555.8,1555.6,1.5162]
[1744381211930,14.5,1555.7,1555.6,1.5162]
[1744381212903,14.5,1555.7,1555.6,8.60698]
[1744381213114,6.42594,1556.2,1555.8,0.55]
[1744381213335,6.42508,1556.5,1556.1,1.6286]
[1744381213531,6.42633,1556.1,1555.8,1.6286]
[1744381213739,14.5,1556.0,1555.8,8.05597]